fUSD/lending_fUSD_20250116
["ID","MTS","AMOUNT","RATE_DAILY","PERIOD"]
[349186819,1737022236818,-500.0,0.00041576,25]
[349186820,1737022236830,-500.0,0.00041576,25]
[349186821,1737022236843,-500.0,0.00041576,25]
[349186822,1737022236855,-191.30824268,0.00041576,25]
[349186823,1737022237160,-308.69175732,0.00041576,25]
[349186824,1737022237170,-389.09755014,0.00041576,25]
[349186825,1737022237180,-500.0,0.00041576,25]
[349186826,1737022237190,-500.0,0.00041576,25]
[349186827,1737022237199,-500.0,0.00041576,25]
[349186828,1737022237208,-500.0,0.00041576,25]
[349186829,1737022237218,-1252.47,0.00041576,25]
[349186830,1737022237228,-500.0,0.00041576,25]
[349186831,1737022237238,-500.0,0.00041576,25]
[349186832,1737022237247,-500.0,0.00041576,25]
[349186833,1737022237256,-500.0,0.00041576,25]
[349186834,1737022237265,-796.96,0.00041576,25]
[349186835,1737022237274,-500.0,0.00041576,25]
[349186836,1737022237284,-500.0,0.00041576,25]
[349186837,1737022237295,-500.0,0.00041576,25]
[349186838,1737022237306,-423.09,0.00041576,25]
[349186839,1737022237315,-659.57,0.00041576,25]
[349186840,1737022237325,-163.442924,0.00041576,25]
[349186841,1737022237335,-500.0,0.00041576,25]
[349186843,1737022237344,-500.0,0.00041576,25]
[349186845,1737022237354,-78.62273548,0.00041576,25]
[349186847,1737022237564,-421.37726452,0.00041576,25]
[349186848,1737022237573,-101.28463663,0.00041576,25]
[349186849,1737022237585,-398.71536337,0.00041576,25]
[349186850,1737022237599,-500.0,0.00041576,25]
[349186851,1737022237609,-500.0,0.00041576,25]
[349186852,1737022237618,-1053.71,0.00041576,25]
[349186853,1737022237627,-500.0,0.00041576,25]
[349186854,1737022237639,-56.09927664,0.00041576,25]
[349186855,1737022237651,-443.90072336,0.00041576,25]
[349186856,1737022237660,-553.71236537,0.00041576,25]
[349186857,1737022237673,-14.43763463,0.00041576,25]
[349186858,1737022237682,-629.75000614,0.00041576,25]
[349186859,1737022237691,-151.20235923,0.00041576,25]
[349186860,1737022237702,-1042.8357821,0.00041576,25]
[349186861,1737022237713,-502.5,0.00041576,25]
[349186862,1737022237725,-208.10185867,0.00041576,25]
[349186863,1737022237735,-1691.25,0.00041576,25]
[349186864,1737022237744,-500.0,0.00041576,25]
[349186865,1737022237755,-761.84,0.00041576,25]
[349186866,1737022237764,-500.0,0.00041576,25]
[349186867,1737022237774,-500.0,0.00041576,25]
[349186868,1737022237783,-857.26,0.00041576,25]
[349186869,1737022237794,-1255.38,0.00041576,25]
[349186870,1737022237804,-500.0,0.00041576,25]
[349186871,1737022237813,-500.0,0.00041576,25]
[349186872,1737022237823,-260.33345612,0.00041576,25]
[349186873,1737022237833,-1414.85,0.00041576,25]
[349186874,1737022237842,-691.27,0.00041576,25]
[349186875,1737022237852,-500.0,0.00041576,25]
[349186876,1737022237861,-841.57896641,0.00041576,25]
[349186877,1737022237873,-131.77103359,0.00041576,25]
[349186878,1737022237883,-500.0,0.00041576,25]
[349186879,1737022237892,-500.0,0.00041576,25]
[349186880,1737022237902,-559.14,0.00041576,25]
[349186881,1737022237912,-500.0,0.00041576,25]
[349186882,1737022237922,-500.0,0.00041576,25]
[349186883,1737022237932,-500.0,0.00041576,25]
[349186884,1737022237941,-500.0,0.00041576,25]
[349186885,1737022237950,-812.85,0.00041576,25]
[349186886,1737022237960,-500.0,0.00041576,25]
[349186887,1737022237970,-567.0,0.00041576,25]
[349186888,1737022237979,-500.0,0.00041576,25]
[349186890,1737022237989,-1854.79920839,0.00041576,25]
[349186891,1737022238001,-23.79079161,0.00041576,25]
[349186893,1737022238010,-1287.67,0.00041576,25]
[349186895,1737022238021,-500.0,0.00041576,25]
[349186897,1737022238031,-500.0,0.00041576,25]
[349186899,1737022238041,-1882.81,0.00041576,25]
[349186901,1737022238051,-500.0,0.00041576,25]
[349186903,1737022238060,-500.0,0.00041576,25]
[349186905,1737022238069,-500.0,0.00041576,25]
[349186907,1737022238078,-500.0,0.00041576,25]
[349186909,1737022238088,-520.48,0.00041576,25]
[349186911,1737022238097,-500.0,0.00041576,25]
[349186913,1737022238107,-500.0,0.00041576,25]
[349186914,1737022238116,-2053.13,0.00041576,25]
[349186915,1737022238125,-500.0,0.00041576,25]
[349186916,1737022238134,-500.0,0.00041576,25]
[349186917,1737022238143,-662.09,0.00041576,25]
[349186918,1737022238154,-643.50661039,0.00041576,25]
[349186919,1737022238166,-279.01338961,0.00041576,25]
[349186920,1737022238176,-500.0,0.00041576,25]
[349186921,1737022238186,-43.47678586,0.00041576,25]
[349186922,1737022239661,-182.41,0.00041573,25]
[349186923,1737022239672,-1148.1,0.00041573,25]
[349186924,1737022239683,-99.64438837,0.00041574,25]
[349186925,1737022239696,-469.97,0.00041574,25]
[349186926,1737022239708,-137.32561163,0.00041574,25]
[349186927,1737022239717,-380.00438837,0.00041575,25]
[349186928,1737022239731,-119.99561163,0.00041575,25]
[349186929,1737022239740,-273.14938837,0.00041576,25]
[349186930,1737022239751,-183.37382577,0.00041576,25]
[349186931,1737022239760,-262.84617423,0.00041576,25]
[349186932,1737022239772,-237.15382577,0.00041576,25]
[349186933,1737022239781,-699.16,0.00041576,25]
[349186934,1737022239791,-1606.24,0.00041576,25]
[349186935,1737022239801,-500.0,0.00041576,25]
[349186936,1737022239810,-1403.74,0.00041576,25]
[349186937,1737022239820,-500.0,0.00041576,25]
[349186938,1737022239829,-1394.69,0.00041576,25]
[349186939,1737022239838,-500.0,0.00041576,25]
[349186940,1737022239847,-841.54,0.00041576,25]
[349186941,1737022239857,-500.0,0.00041576,25]
[349186942,1737022239867,-500.0,0.00041576,25]
[349186943,1737022239877,-500.0,0.00041576,25]
[349186944,1737022239887,-500.0,0.00041576,25]
[349186945,1737022239896,-162.35,0.00041576,25]
[349186946,1737022239907,-1192.68,0.00041576,25]
[349186947,1737022239917,-500.0,0.00041576,25]
[349186948,1737022239927,-1379.66,0.00041576,25]
[349186949,1737022239937,-500.0,0.00041576,25]
[349186950,1737022239946,-640.75,0.00041576,25]
[349186951,1737022239956,-500.0,0.00041576,25]
[349186952,1737022239966,-1148.1,0.00041576,25]
[349186953,1737022239975,-1990.09644863,0.00041577,2]
[349186954,1737022240014,-14178.80785137,0.00041577,2]
[349186955,1737022240023,-2616.48349053,0.00041577,2]
[349186956,1737022240035,-559.47821749,0.00041577,2]
[349186957,1737022240049,-666.18890673,0.00041577,2]
[349186958,1737022240061,-1173.54650001,0.00041577,2]
[349186959,1737022240123,-150.0,0.00041573,25]
[349186960,1737022240132,-706.94,0.00041576,25]
[349186961,1737022240142,-182.74586,0.00041577,2]
[349186963,1737022240155,-2756.34732524,0.00041577,2]
[349186965,1737022240164,-6873.20026848,0.00041577,2]
[349186967,1737022240176,-2943.6,0.00041577,2]
[349186969,1737022240187,-1013.16,0.00041577,2]
[349186971,1737022240199,-764.75220241,0.00041577,2]
[349186997,1737022242645,-200.0,0.000387,120]
[349186999,1737022242655,-1916.97344522,0.00041577,2]
[349187005,1737022242746,-2405.59328539,0.00041577,2]
[349187008,1737022242759,-107798.9664985,0.00041577,2]
[349187010,1737022242769,-4268.4854,0.00041577,2]
[349187012,1737022242779,-10000.04139436,0.000416,45]
[349187013,1737022242789,-150.0,0.00041618,30]
[349187014,1737022242799,-900.26,0.00041643,120]
[349187015,1737022242809,-160.28,0.00041665,25]
[349187016,1737022242818,-500.0,0.00041666,25]
[349187017,1737022242828,-500.0,0.00041666,25]
[349187018,1737022242838,-345.64,0.00041666,25]
[349187019,1737022242847,-496.51070293,0.00041666,25]
[349187020,1737022242856,-1238.02,0.00041666,45]
[349187021,1737022242866,-275.21,0.00041666,25]
[349187022,1737022242876,-203.24,0.00041666,25]
[349187023,1737022242886,-292.68,0.00041666,25]
[349187024,1737022242895,-339.85,0.00041666,25]
[349187025,1737022242905,-339.81,0.00041666,25]
[349187026,1737022242915,-498.52,0.00041666,25]
[349187027,1737022242925,-500.0,0.00041666,25]
[349187028,1737022242934,-500.5368991,0.00041666,25]
[349187029,1737022242944,-516.79,0.00041666,25]
[349187030,1737022242953,-474.14,0.00041666,25]
[349187031,1737022242962,-500.0,0.00041666,25]
[349187032,1737022242972,-500.0,0.00041666,25]
[349187033,1737022242981,-356.09,0.00041666,25]
[349187034,1737022242991,-500.0,0.00041666,25]
[349187035,1737022243000,-500.0,0.00041666,25]
[349187036,1737022243010,-500.0,0.00041666,25]
[349187037,1737022243019,-500.0,0.00041666,25]
[349187038,1737022243028,-268.85,0.00041666,25]
[349187039,1737022243038,-178.23,0.00041666,25]
[349187040,1737022243048,-648.0,0.00041666,25]
[349187041,1737022243058,-500.0,0.00041666,25]
[349187043,1737022243067,-500.0,0.00041666,25]
[349187045,1737022243076,-258.34,0.00041666,25]
[349187047,1737022243086,-501.16430855,0.00041666,25]
[349187049,1737022243095,-500.0,0.00041666,25]
[349187051,1737022243104,-191.8,0.00041666,25]
[349187053,1737022243113,-500.0,0.00041666,25]
[349187055,1737022243122,-500.0,0.00041666,25]
[349187057,1737022243131,-500.0,0.00041666,25]
[349187059,1737022243140,-229.83661127,0.00041666,2]
[349187060,1737022243150,-500.0,0.00041666,25]
[349187062,1737022243160,-573.57,0.00041666,25]
[349187064,1737022243169,-409.62,0.00041666,25]
[349187066,1737022243178,-500.0,0.00041666,25]
[349187068,1737022243188,-446.85,0.00041666,25]
[349187070,1737022243197,-500.0,0.00041666,25]
[349187072,1737022243206,-331.35,0.00041666,25]
[349187074,1737022243215,-504.8726347,0.00041666,25]
[349187076,1737022243224,-365.3,0.00041666,25]
[349187078,1737022243233,-500.0,0.00041666,25]
[349187080,1737022243243,-500.0,0.00041666,25]
[349187082,1737022243251,-504.55000133,0.00041666,25]
[349187084,1737022243261,-502.41391519,0.00041666,25]
[349187086,1737022243270,-500.0,0.00041666,25]
[349187088,1737022243279,-588.49541861,0.00041666,25]
[349187090,1737022243289,-277.49017547,0.00041666,25]
[349187092,1737022243299,-500.0,0.00041666,25]
[349187094,1737022243309,-500.0,0.00041666,25]
[349187096,1737022243318,-500.0,0.00041666,25]
[349187098,1737022243328,-354.50866912,0.00041666,25]
[349187100,1737022243337,-503.78646012,0.00041666,25]
[349187102,1737022243347,-2641.52,0.00041666,25]
[349187104,1737022243356,-500.0,0.00041666,25]
[349187106,1737022243365,-305.13942499,0.00041666,25]
[349187108,1737022243375,-500.0,0.00041666,25]
[349187110,1737022243384,-500.0,0.00041666,25]
[349187112,1737022243394,-500.0,0.00041666,25]
[349187114,1737022243404,-500.0,0.00041666,25]
[349187116,1737022243413,-500.0,0.00041666,25]
[349187118,1737022243423,-500.0,0.00041666,25]
[349187120,1737022243432,-192.91,0.00041666,25]
[349187122,1737022243442,-868.67,0.00041666,25]
[349187124,1737022243451,-348.01,0.00041666,25]
[349187126,1737022243460,-500.0,0.00041666,25]
[349187127,1737022243469,-450.25,0.00041666,25]
[349187128,1737022243479,-394.93,0.00041666,25]
[349187129,1737022243488,-500.0,0.00041666,25]
[349187130,1737022243497,-894.04,0.00041666,25]
[349187131,1737022243506,-153.41,0.00041666,25]
[349187132,1737022243515,-1036.32,0.00041666,25]
[349187133,1737022243525,-184.78,0.00041666,25]
[349187134,1737022243534,-500.0,0.00041666,25]
[349187135,1737022243543,-227.54,0.00041666,25]
[349187136,1737022243554,-1904.64,0.00041666,25]
[349187137,1737022243563,-1454.38,0.00041666,25]
[349187138,1737022243572,-500.0,0.00041666,25]
[349187139,1737022243581,-681.36,0.00041666,25]
[349187140,1737022243591,-577.82,0.00041666,25]
[349187141,1737022243603,-500.0,0.00041666,25]
[349187142,1737022243614,-500.0,0.00041666,25]
[349187144,1737022243623,-857.26,0.00041666,25]
[349187146,1737022243632,-634.67,0.00041666,25]
[349187161,1737022243759,-329.09,0.00041666,25]
[349187163,1737022243768,-500.0,0.00041666,25]
[349187165,1737022243778,-1779.03,0.00041666,25]
[349187167,1737022243788,-500.0,0.00041666,25]
[349187169,1737022243797,-691.27,0.00041666,25]
[349187171,1737022243807,-571.02,0.00041666,25]
[349187173,1737022243816,-500.0,0.00041666,25]
[349187175,1737022243827,-559.14,0.00041666,25]
[349187177,1737022243836,-500.0,0.00041666,25]
[349187179,1737022243846,-872.48,0.00041666,25]
[349187181,1737022243856,-500.0,0.00041666,25]
[349187183,1737022243865,-500.0,0.00041666,25]
[349187185,1737022243875,-500.0,0.00041666,25]
[349187187,1737022243884,-567.0,0.00041666,25]
[349187189,1737022243894,-500.0,0.00041666,25]
[349187191,1737022243903,-933.54,0.00041666,25]
[349187193,1737022243912,-1878.59,0.00041666,25]
[349187195,1737022243921,-500.0,0.00041666,25]
[349187197,1737022243931,-508.57596045,0.00041666,25]
[349187199,1737022243940,-500.0,0.00041666,25]
[349187201,1737022243950,-1075.23,0.00041666,25]
[349187203,1737022243959,-500.0,0.00041666,25]
[349187205,1737022243969,-500.0,0.00041666,25]
[349187207,1737022243978,-500.0,0.00041666,25]
[349187209,1737022243988,-500.0,0.00041666,25]
[349187211,1737022243997,-2656.42,0.00041666,25]
[349187213,1737022244007,-520.48,0.00041666,25]
[349187215,1737022244016,-2053.13,0.00041666,25]
[349187217,1737022244025,-500.0,0.00041666,25]
[349187219,1737022244037,-662.09,0.00041666,25]
[349187221,1737022244047,-500.0,0.00041666,25]
[349187223,1737022244056,-500.0,0.00041666,25]
[349187225,1737022244066,-922.52,0.00041666,25]
[349187227,1737022244076,-500.0,0.00041666,25]
[349187229,1737022244086,-500.0,0.00041666,25]
[349187231,1737022244096,-1606.24,0.00041666,25]
[349187233,1737022244106,-500.0,0.00041666,25]
[349187235,1737022244116,-823.54,0.00041666,25]
[349187237,1737022244126,-1403.74,0.00041666,25]
[349187239,1737022244137,-500.0,0.00041666,25]
[349187241,1737022244147,-500.0,0.00041666,25]
[349187243,1737022244157,-1394.69,0.00041666,25]
[349187245,1737022244167,-226.55,0.00041666,25]
[349187247,1737022244177,-500.0,0.00041666,25]
[349187249,1737022244187,-744.62,0.00041666,25]
[349187251,1737022244197,-500.0,0.00041666,25]
[349187253,1737022244207,-431.48,0.00041666,25]
[349187255,1737022244216,-294.5,0.00041666,25]
[349187257,1737022244226,-1192.68,0.00041666,25]
[349187260,1737022244236,-1379.66,0.00041666,25]
[349187262,1737022244246,-1462.11,0.00041666,25]
[349187264,1737022244255,-1148.1,0.00041666,25]
[349187266,1737022244264,-500.0,0.00041667,25]
[349187268,1737022244274,-500.0,0.00041667,25]
[349187270,1737022244283,-500.0,0.00041667,25]
[349187271,1737022244293,-500.0,0.00041667,25]
[349187274,1737022244304,-500.0,0.00041667,25]
[349187275,1737022244313,-500.0,0.00041667,25]
[349187278,1737022244323,-500.0,0.00041667,25]
[349187280,1737022244333,-500.0,0.00041667,25]
[349187282,1737022244343,-500.0,0.00041667,25]
[349187284,1737022244353,-500.0,0.00041667,25]
[349187286,1737022244363,-500.0,0.00041667,25]
[349187288,1737022244373,-500.0,0.00041667,25]
[349187290,1737022244383,-500.0,0.00041667,25]
[349187292,1737022244393,-500.0,0.00041667,25]
[349187294,1737022244403,-500.0,0.00041667,25]
[349187296,1737022244413,-500.0,0.00041667,25]
[349187298,1737022244422,-500.0,0.00041667,25]
[349187300,1737022244432,-500.0,0.00041667,25]
[349187302,1737022244442,-500.0,0.00041667,25]
[349187304,1737022244452,-247.17294009,0.00041667,25]
[349187306,1737022244461,-510.69986738,0.00041667,25]
[349187308,1737022244472,-330.55429859,0.00041667,25]
[349187310,1737022244481,-500.0,0.00041667,25]
[349187312,1737022244491,-500.0,0.00041667,25]
[349187314,1737022244501,-500.0,0.00041667,25]
[349187316,1737022244511,-500.0,0.00041667,25]
[349187318,1737022244521,-500.0,0.00041667,25]
[349187320,1737022244531,-500.0,0.00041667,25]
[349187322,1737022244541,-500.0,0.00041667,25]
[349187324,1737022244552,-500.0,0.00041667,25]
[349187326,1737022244562,-500.0,0.00041667,25]
[349187328,1737022244571,-500.0,0.00041667,25]
[349187330,1737022244581,-500.0,0.00041667,25]
[349187332,1737022244591,-500.0,0.00041667,25]
[349187334,1737022244604,-500.0,0.00041667,25]
[349187336,1737022244614,-500.0,0.00041667,25]
[349187338,1737022244624,-500.0,0.00041667,25]
[349187340,1737022244634,-500.0,0.00041667,25]
[349187342,1737022244644,-500.0,0.00041667,25]
[349187344,1737022244653,-500.0,0.00041667,25]
[349187346,1737022244663,-642.68,0.00041667,25]
[349187348,1737022244672,-560.67,0.00041667,2]
[349187350,1737022244681,-500.0,0.00041667,25]
[349187352,1737022244690,-500.0,0.00041667,25]
[349187354,1737022244700,-574.93,0.00041667,25]
[349187356,1737022244709,-500.0,0.00041667,25]
[349187358,1737022244718,-500.0,0.00041667,25]
[349187360,1737022244728,-500.0,0.00041667,25]
[349187362,1737022244738,-500.0,0.00041667,25]
[349187364,1737022244748,-500.0,0.00041667,25]
[349187366,1737022244758,-500.0,0.00041667,25]
[349187368,1737022244767,-500.0,0.00041667,25]
[349187370,1737022244778,-500.0,0.00041667,25]
[349187372,1737022244787,-500.0,0.00041667,25]
[349187374,1737022244797,-500.0,0.00041667,25]
[349187376,1737022244806,-500.0,0.00041667,25]
[349187378,1737022244816,-500.0,0.00041667,25]
[349187380,1737022244825,-500.0,0.00041667,25]
[349187382,1737022244835,-552.42,0.00041667,25]
[349187384,1737022244844,-500.0,0.00041667,25]
[349187386,1737022244854,-500.0,0.00041667,25]
[349187388,1737022244863,-209.05181945,0.00041669,9]
[349187390,1737022244872,-477.0,0.0004167,25]
[349187392,1737022244882,-500.0,0.0004167,25]
[349187394,1737022244891,-155.31,0.0004167,25]
[349187396,1737022244900,-500.0,0.0004167,25]
[349187398,1737022244909,-266.78,0.0004167,25]
[349187400,1737022244920,-499.71,0.0004167,25]
[349187402,1737022244929,-359.86,0.0004167,25]
[349187404,1737022244938,-434.45,0.0004167,25]
[349187406,1737022244948,-333.17885893,0.0004167,25]
[349187408,1737022244957,-500.0,0.0004167,25]
[349187410,1737022244967,-659.57,0.0004167,25]
[349187412,1737022244976,-163.442924,0.0004167,25]
[349187414,1737022244986,-317.09,0.0004167,25]
[349187416,1737022244996,-1053.71,0.0004167,25]
[349187418,1737022245006,-500.0,0.0004167,25]
[349187420,1737022245015,-568.15,0.0004167,25]
[349187422,1737022245026,-151.234075,0.0004167,25]
[349187424,1737022245035,-1691.25,0.0004167,25]
[349187426,1737022245043,-500.0,0.0004167,25]
[349187428,1737022245054,-761.84,0.0004167,25]
[349187430,1737022245064,-500.0,0.0004167,25]
[349187432,1737022245073,-500.0,0.0004167,25]
[349187433,1737022245083,-1255.38,0.0004167,25]
[349187436,1737022245093,-500.0,0.0004167,25]
[349187437,1737022245102,-1414.85,0.0004167,25]
[349187440,1737022245112,-973.35,0.0004167,25]
[349187442,1737022245122,-500.0,0.0004167,25]
[349187444,1737022245131,-812.85,0.0004167,25]
[349187445,1737022245141,-1287.67,0.0004167,25]
[349187448,1737022245151,-1882.81,0.0004167,25]
[349187449,1737022245162,-699.16,0.0004167,25]
[349187452,1737022245172,-841.54,0.0004167,25]
[349187453,1737022245182,-500.0,0.0004167,25]
[349187455,1737022245191,-500.0,0.0004167,25]
[349187457,1737022245200,-640.75,0.0004167,25]
[349187459,1737022245210,-706.94,0.0004167,25]
[349187461,1737022245219,-500.0,0.00041671,25]
[349187463,1737022245229,-500.0,0.00041671,25]
[349187466,1737022245239,-796.96,0.00041671,25]
[349187467,1737022245248,-500.0,0.00041671,25]
[349187470,1737022245258,-500.0,0.00041672,25]
[349187472,1737022245268,-500.0,0.00041672,25]
[349187474,1737022245277,-500.0,0.00041672,25]
[349187476,1737022245287,-1238.02,0.00041673,45]
[349187477,1737022245297,-500.0,0.00041673,25]
[349187479,1737022245307,-500.0,0.00041673,25]
[349187481,1737022245317,-1904.64,0.00041673,25]
[349187484,1737022245327,-500.0,0.00041673,25]
[349187486,1737022245337,-515.93783413,0.00041673,25]
[349187488,1737022245347,-500.0,0.00041674,25]
[349187490,1737022245357,-643.93552175,0.00041674,25]
[349187492,1737022245366,-500.0,0.00041674,25]
[349187494,1737022245377,-500.0,0.00041674,25]
[349187496,1737022245387,-500.0,0.00041674,25]
[349187499,1737022245396,-2641.52,0.00041674,25]
[349187502,1737022245406,-632.16644007,0.00041674,25]
[349187504,1737022245416,-500.0,0.00041674,25]
[349187506,1737022245425,-500.0,0.00041674,25]
[349187508,1737022245435,-868.67,0.00041674,25]
[349187510,1737022245445,-500.0,0.00041674,25]
[349187513,1737022245455,-894.04,0.00041674,25]
[349187516,1737022245465,-1036.32,0.00041674,25]
[349187519,1737022245475,-500.0,0.00041674,25]
[349187522,1737022245484,-1454.38,0.00041674,25]
[349187525,1737022245493,-681.36,0.00041674,25]
[349187528,1737022245502,-515.2286792,0.00041674,25]
[349187531,1737022245511,-500.0,0.00041674,25]
[349187534,1737022245521,-634.67,0.00041674,25]
[349187537,1737022245531,-500.0,0.00041674,25]
[349187540,1737022245541,-1779.03,0.00041674,25]
[349187543,1737022245551,-500.0,0.00041674,25]
[349187546,1737022245560,-571.02,0.00041674,25]
[349187549,1737022245570,-872.48,0.00041674,25]
[349187552,1737022245580,-500.0,0.00041674,25]
[349187555,1737022245589,-933.54,0.00041674,25]
[349187558,1737022245600,-500.0,0.00041674,25]
[349187561,1737022245611,-500.0,0.00041674,25]
[349187564,1737022245621,-1075.23,0.00041674,25]
[349187566,1737022245631,-500.0,0.00041674,25]
[349187568,1737022245641,-500.0,0.00041674,25]
[349187570,1737022245652,-2656.42,0.00041674,25]
[349187572,1737022245662,-500.0,0.00041674,25]
[349187574,1737022245672,-500.0,0.00041674,25]
[349187576,1737022245683,-500.0,0.00041674,25]
[349187578,1737022245693,-823.54,0.00041674,25]
[349187580,1737022245703,-500.0,0.00041674,25]
[349187582,1737022245712,-744.62,0.00041674,25]
[349187584,1737022245722,-1462.11,0.00041674,25]
[349187586,1737022245731,-1000.0,0.00041675,2]
[349187588,1737022245741,-1000.0,0.00041675,2]
[349187590,1737022245753,-1000.0,0.00041675,2]
[349187592,1737022245763,-1000.0,0.00041675,2]
[349187594,1737022245772,-1000.0,0.00041675,2]
[349187596,1737022245781,-1000.0,0.00041675,2]
[349187598,1737022245791,-1000.0,0.00041675,2]
[349187600,1737022245802,-1000.0,0.00041675,2]
[349187602,1737022245811,-1000.0,0.00041675,2]
[349187604,1737022245821,-1000.0,0.00041675,2]
[349187606,1737022245830,-1000.0,0.00041675,2]
[349187608,1737022245841,-1000.0,0.00041675,2]
[349187610,1737022245850,-1000.0,0.00041675,2]
[349187612,1737022245860,-1000.0,0.00041675,2]
[349187614,1737022245870,-1000.0,0.00041675,2]
[349187616,1737022245879,-1000.0,0.00041675,2]
[349187618,1737022245889,-1000.0,0.00041675,2]
[349187620,1737022245899,-1000.0,0.00041675,2]
[349187622,1737022245909,-1000.0,0.00041675,2]
[349187624,1737022245919,-443.68229045,0.00041675,2]
[349187626,1737022245928,-500.0,0.00041675,25]
[349187628,1737022245938,-500.0,0.00041675,25]
[349187630,1737022245947,-500.0,0.00041675,25]
[349187632,1737022245957,-500.0,0.00041675,25]
[349187634,1737022245967,-1238.02,0.00041675,45]
[349187636,1737022245977,-500.0,0.00041675,25]
[349187638,1737022245986,-2641.52,0.00041675,25]
[349187640,1737022245996,-500.0,0.00041675,25]
[349187642,1737022246006,-500.0,0.00041675,25]
[349187644,1737022246016,-500.0,0.00041675,25]
[349187646,1737022246026,-868.67,0.00041675,25]
[349187648,1737022246035,-500.0,0.00041675,25]
[349187650,1737022246045,-500.0,0.00041675,25]
[349187652,1737022246056,-500.0,0.00041675,25]
[349187654,1737022246066,-796.96,0.00041675,25]
[349187656,1737022246076,-659.57,0.00041675,25]
[349187658,1737022246086,-163.442924,0.00041675,25]
[349187660,1737022246095,-894.04,0.00041675,25]
[349187662,1737022246105,-1036.32,0.00041675,25]
[349187665,1737022246116,-500.0,0.00041675,25]
[349187667,1737022246126,-500.0,0.00041675,25]
[349187669,1737022246136,-1053.71,0.00041675,25]
[349187671,1737022246145,-500.0,0.00041675,25]
[349187673,1737022246156,-568.15,0.00041675,25]
[349187675,1737022246165,-1904.64,0.00041675,25]
[349187677,1737022246175,-151.234075,0.00041675,25]
[349187682,1737022246185,-1691.25,0.00041675,25]
[349187684,1737022246227,-500.0,0.00041675,25]
[349187686,1737022246236,-1454.38,0.00041675,25]
[349187688,1737022246246,-761.84,0.00041675,25]
[349187690,1737022246255,-500.0,0.00041675,25]
[349187692,1737022246264,-681.36,0.00041675,25]
[349187694,1737022246274,-500.0,0.00041675,25]
[349187696,1737022246284,-500.0,0.00041675,25]
[349187698,1737022246292,-857.26,0.00041675,25]
[349187700,1737022246303,-634.67,0.00041675,25]
[349187702,1737022246313,-1255.38,0.00041675,25]
[349187704,1737022246323,-500.0,0.00041675,25]
[349187706,1737022246333,-500.0,0.00041675,25]
[349187708,1737022246342,-1779.03,0.00041675,25]
[349187710,1737022246351,-1414.85,0.00041675,25]
[349187712,1737022246361,-500.0,0.00041675,25]
[349187714,1737022246370,-691.27,0.00041675,25]
[349187716,1737022246380,-973.35,0.00041675,25]
[349187718,1737022246389,-571.02,0.00041675,25]
[349187720,1737022246398,-500.0,0.00041675,25]
[349187722,1737022246408,-559.14,0.00041675,25]
[349187724,1737022246417,-872.48,0.00041675,25]
[349187726,1737022246426,-500.0,0.00041675,25]